[Event "*** Titled Tuesday Blitz"]
[Site "Chess.com"]
[Date "2021.04.27"]
[Round "6"]
[White "monalize"]
[Black "agartha01"]
[Result "1-0"]
[WhiteElo "2391"]
[BlackElo "2516"]
[TimeControl "180+1"]
[EndTime "11:07:01 PDT"]
[Termination "monalize won by resignation"]

1. e4 {[%clk 0:03:00.9]} 1... c5 {[%clk 0:02:59.4]} 2. Nf3 {[%clk 0:02:59.9]}
2... e6 {[%clk 0:02:59.6]} 3. b3 {[%clk 0:02:59.3]} 3... Nc6 {[%clk 0:02:59.5]}
4. Bb2 {[%clk 0:02:59]} 4... Nge7 {[%clk 0:02:59.4]} 5. d4 {[%clk 0:02:57.1]}
5... cxd4 {[%clk 0:03:00.3]} 6. Nxd4 {[%clk 0:02:57.2]} 6... Nxd4 {[%clk
0:03:01.2]} 7. Qxd4 {[%clk 0:02:56.1]} 7... Nc6 {[%clk 0:03:01.9]} 8. Qd2 {[%clk
0:02:53]} 8... e5 {[%clk 0:02:54]} 9. Bc4 {[%clk 0:02:50.8]} 9... Be7 {[%clk
0:02:53]} 10. O-O {[%clk 0:02:49.4]} 10... O-O {[%clk 0:02:52.3]} 11. Nc3 {[%clk
0:02:49.1]} 11... d6 {[%clk 0:02:50.8]} 12. Rfd1 {[%clk 0:02:34.1]} 12... Be6
{[%clk 0:02:49]} 13. Nd5 {[%clk 0:02:32.1]} 13... Rc8 {[%clk 0:02:41.4]} 14.
Nxe7+ {[%clk 0:02:29.6]} 14... Nxe7 {[%clk 0:02:20.7]} 15. Bxe6 {[%clk
0:02:27.4]} 15... fxe6 {[%clk 0:02:21.6]} 16. c4 {[%clk 0:02:27.8]} 16... Ng6
{[%clk 0:02:00]} 17. Qxd6 {[%clk 0:02:23.9]} 17... Qf6 {[%clk 0:02:00.6]} 18. f3
{[%clk 0:02:13.8]} 18... h5 {[%clk 0:01:58.8]} 19. Rd2 {[%clk 0:02:00.8]} 19...
h4 {[%clk 0:01:58.1]} 20. h3 {[%clk 0:02:00.3]} 20... Rcd8 {[%clk 0:01:48.4]}
21. Qb4 {[%clk 0:01:59.6]} 21... Qg5 {[%clk 0:01:48.2]} 22. Rad1 {[%clk
0:01:47.5]} 22... Nf4 {[%clk 0:01:37.3]} 23. Kh1 {[%clk 0:01:37.7]} 23... Kh7
{[%clk 0:01:11.3]} 24. Qc3 {[%clk 0:01:17.2]} 24... Rxd2 {[%clk 0:00:41.8]} 25.
Rxd2 {[%clk 0:01:10.6]} 25... Rd8 {[%clk 0:00:38.5]} 26. Qe3 {[%clk 0:01:02.5]}
26... Rd3 {[%clk 0:00:20.5]} 27. Qe1 {[%clk 0:00:51.2]} 27... Kg6 {[%clk
0:00:18.1]} 28. Bc1 {[%clk 0:00:43.8]} 28... Kh5 {[%clk 0:00:16.6]} 29. Qf1
{[%clk 0:00:32.9]} 29... Qd8 {[%clk 0:00:13.5]} 30. Rxd3 {[%clk 0:00:31.2]}
30... Nxd3 {[%clk 0:00:13.9]} 31. Be3 {[%clk 0:00:29.3]} 31... b6 {[%clk
0:00:14.2]} 32. Qe2 {[%clk 0:00:28.1]} 32... Kg6 {[%clk 0:00:12.4]} 33. Qd2
{[%clk 0:00:27]} 33... Qd7 {[%clk 0:00:11.9]} 34. Kg1 {[%clk 0:00:26.6]} 34...
Kf7 {[%clk 0:00:11.3]} 35. Kf1 {[%clk 0:00:26.3]} 35... Ke7 {[%clk 0:00:11.3]}
36. Ke2 {[%clk 0:00:26.2]} 36... Nf4+ {[%clk 0:00:07.5]} 37. Bxf4 {[%clk
0:00:25.7]} 37... exf4 {[%clk 0:00:08.1]} 38. Qxd7+ {[%clk 0:00:22.6]} 38...
Kxd7 {[%clk 0:00:09]} 39. e5 {[%clk 0:00:20.4]} 39... Kc6 {[%clk 0:00:08.9]} 40.
b4 {[%clk 0:00:20.5]} 40... g5 {[%clk 0:00:06.3]} 41. Kd3 {[%clk 0:00:20.4]}
41... Kc7 {[%clk 0:00:06.1]} 42. Kd4 {[%clk 0:00:20.3]} 42... Kc6 {[%clk
0:00:06.4]} 43. b5+ {[%clk 0:00:20.4]} 43... Kb7 {[%clk 0:00:06.8]} 44. c5
{[%clk 0:00:20.8]} 44... Kc7 {[%clk 0:00:07.3]} 45. a4 {[%clk 0:00:19.2]} 45...
Kb7 {[%clk 0:00:07.4]} 46. Kc4 {[%clk 0:00:19.6]} 46... Kc7 {[%clk 0:00:07.6]}
47. Kb4 {[%clk 0:00:20]} 47... Kb7 {[%clk 0:00:07.8]} 48. a5 {[%clk 0:00:20.3]}
48... Kc7 {[%clk 0:00:06.6]} 49. axb6+ {[%clk 0:00:20.2]} 49... axb6 {[%clk
0:00:07.2]} 50. cxb6+ {[%clk 0:00:20.4]} 50... Kxb6 {[%clk 0:00:07.8]} 51. Kc4
{[%clk 0:00:20.8]} 1-0

[Event "*** Titled Tuesday Blitz"]
[Site "Chess.com"]
[Date "2021.04.27"]
[Round "6"]
[White "DarZay"]
[Black "Harald_Schmidt"]
[Result "0-1"]
[WhiteElo "2163"]
[BlackElo "2318"]
[TimeControl "180+1"]
[EndTime "11:07:07 PDT"]
[Termination "Harald_Schmidt won by checkmate"]

1. e4 {[%clk 0:02:54.8]} 1... e5 {[%clk 0:02:59.1]} 2. Nf3 {[%clk 0:02:54.6]}
2... Nc6 {[%clk 0:02:58.9]} 3. Bc4 {[%clk 0:02:54.6]} 3... Nf6 {[%clk
0:02:58.1]} 4. d3 {[%clk 0:02:54.2]} 4... Be7 {[%clk 0:02:55.2]} 5. c3 {[%clk
0:02:52.8]} 5... O-O {[%clk 0:02:51.4]} 6. b4 {[%clk 0:02:50]} 6... d5 {[%clk
0:02:45.7]} 7. exd5 {[%clk 0:02:47]} 7... Nxd5 {[%clk 0:02:41.4]} 8. b5 {[%clk
0:02:46.7]} 8... Na5 {[%clk 0:02:37.5]} 9. Nxe5 {[%clk 0:02:46.8]} 9... Bf6
{[%clk 0:02:32]} 10. f4 {[%clk 0:02:37]} 10... Bxe5 {[%clk 0:02:14.1]} 11. fxe5
{[%clk 0:02:36.8]} 11... Nxc4 {[%clk 0:02:13.9]} 12. dxc4 {[%clk 0:02:36.6]}
12... Qh4+ {[%clk 0:02:13.4]} 13. g3 {[%clk 0:02:36.4]} 13... Qxc4 {[%clk
0:02:12.8]} 14. Qe2 {[%clk 0:02:30.4]} 14... Qa4 {[%clk 0:01:35.4]} 15. O-O
{[%clk 0:02:21.7]} 15... Bg4 {[%clk 0:01:07.4]} 16. Qb2 {[%clk 0:02:02.8]} 16...
Rad8 {[%clk 0:00:58.4]} 17. Nd2 {[%clk 0:01:52.5]} 17... Ne3 {[%clk 0:00:53.7]}
18. Re1 {[%clk 0:01:43.4]} 18... Nc2 {[%clk 0:00:53]} 19. Re4 {[%clk 0:01:41.6]}
19... Qxe4 {[%clk 0:00:35.8]} 20. Nxe4 {[%clk 0:01:39.9]} 20... Nxa1 {[%clk
0:00:35.6]} 21. Qxa1 {[%clk 0:01:39.1]} 21... Rd1+ {[%clk 0:00:32.6]} 22. Kf2
{[%clk 0:01:39.1]} 22... Rfd8 {[%clk 0:00:27.8]} 23. Qb2 {[%clk 0:01:37.7]}
23... Bf5 {[%clk 0:00:24.3]} 24. Nc5 {[%clk 0:01:26.7]} 24... b6 {[%clk
0:00:17.7]} 25. Nb3 {[%clk 0:01:26.3]} 25... Rh1 {[%clk 0:00:11.7]} 26. Bd2
{[%clk 0:00:55.1]} 26... Rxh2+ {[%clk 0:00:09.6]} 27. Kg1 {[%clk 0:00:55.4]}
27... Re2 {[%clk 0:00:09.4]} 28. Nd4 {[%clk 0:00:54]} 28... Bg6 {[%clk
0:00:07.6]} 29. Bf4 {[%clk 0:00:52.2]} 29... Rxb2 {[%clk 0:00:06]} 30. Kf1
{[%clk 0:00:51.3]} 30... Rxd4 {[%clk 0:00:05.7]} 31. cxd4 {[%clk 0:00:51]} 31...
Rxa2 {[%clk 0:00:06.6]} 32. d5 {[%clk 0:00:50]} 32... Kf8 {[%clk 0:00:06.6]} 33.
d6 {[%clk 0:00:50]} 33... cxd6 {[%clk 0:00:06.7]} 34. exd6 {[%clk 0:00:50.1]}
34... Ke8 {[%clk 0:00:07.6]} 35. Ke1 {[%clk 0:00:49.8]} 35... Kd7 {[%clk
0:00:08.5]} 36. Kd1 {[%clk 0:00:49.5]} 36... Bd3 {[%clk 0:00:08.2]} 37. Kc1
{[%clk 0:00:49.1]} 37... Bxb5 {[%clk 0:00:09.1]} 38. Kb1 {[%clk 0:00:48.3]}
38... Rg2 {[%clk 0:00:10]} 39. Kc1 {[%clk 0:00:47.7]} 39... f6 {[%clk
0:00:10.9]} 40. Kd1 {[%clk 0:00:47.2]} 40... g5 {[%clk 0:00:11.8]} 41. Be3
{[%clk 0:00:46.6]} 41... h5 {[%clk 0:00:12.6]} 42. Bd4 {[%clk 0:00:45.8]} 42...
Rxg3 {[%clk 0:00:12.6]} 43. Bxf6 {[%clk 0:00:45.8]} 43... h4 {[%clk 0:00:12.9]}
44. Be5 {[%clk 0:00:45.5]} 44... Rg2 {[%clk 0:00:11.9]} 45. Ke1 {[%clk
0:00:45.3]} 45... h3 {[%clk 0:00:12.8]} 46. Kd1 {[%clk 0:00:41.4]} 46... g4
{[%clk 0:00:13.7]} 47. Ke1 {[%clk 0:00:40.7]} 47... Bc6 {[%clk 0:00:14.6]} 48.
Kf1 {[%clk 0:00:38.1]} 48... h2 {[%clk 0:00:14]} 49. Bxh2 {[%clk 0:00:36.8]}
49... Rxh2 {[%clk 0:00:14.2]} 50. Kg1 {[%clk 0:00:36.8]} 50... g3 {[%clk
0:00:14.5]} 51. Kf1 {[%clk 0:00:36.7]} 51... a5 {[%clk 0:00:15.4]} 52. Kg1
{[%clk 0:00:36.6]} 52... a4 {[%clk 0:00:15.3]} 53. Kf1 {[%clk 0:00:35.8]} 53...
a3 {[%clk 0:00:15.4]} 54. Kg1 {[%clk 0:00:35.7]} 54... Rh1# {[%clk 0:00:15]} 0-1

[Event "*** Titled Tuesday Blitz"]
[Site "Chess.com"]
[Date "2021.04.27"]
[Round "6"]
[White "Dinamo81"]
[Black "rpragchess"]
[Result "0-1"]
[WhiteElo "2715"]
[BlackElo "2899"]
[TimeControl "180+1"]
[EndTime "11:07:08 PDT"]
[Termination "rpragchess won on time"]

1. d4 {[%clk 0:03:00.9]} 1... Nf6 {[%clk 0:03:00.6]} 2. Bf4 {[%clk 0:03:00.1]}
2... g6 {[%clk 0:02:57.8]} 3. Nc3 {[%clk 0:02:59.4]} 3... d5 {[%clk 0:02:57.6]}
4. e3 {[%clk 0:02:59.3]} 4... Bg7 {[%clk 0:02:56.9]} 5. h4 {[%clk 0:02:59.8]}
5... h5 {[%clk 0:02:55]} 6. Nf3 {[%clk 0:02:59.1]} 6... c6 {[%clk 0:02:54.6]} 7.
Qd2 {[%clk 0:02:55.6]} 7... b5 {[%clk 0:02:51.2]} 8. Bd3 {[%clk 0:02:50.6]} 8...
a5 {[%clk 0:02:50.5]} 9. Ne5 {[%clk 0:02:47.2]} 9... Qb6 {[%clk 0:02:30.4]} 10.
f3 {[%clk 0:02:36.8]} 10... Nbd7 {[%clk 0:02:21.5]} 11. O-O {[%clk 0:01:59.4]}
11... O-O {[%clk 0:02:12.3]} 12. Kh1 {[%clk 0:01:52.3]} 12... Ba6 {[%clk
0:01:36]} 13. Rfe1 {[%clk 0:01:39.2]} 13... Rad8 {[%clk 0:01:28]} 14. Qe2 {[%clk
0:01:24.7]} 14... Bb7 {[%clk 0:01:17.6]} 15. a4 {[%clk 0:01:23.4]} 15... b4
{[%clk 0:01:17.2]} 16. Nd1 {[%clk 0:01:01.3]} 16... c5 {[%clk 0:01:17.4]} 17. c3
{[%clk 0:00:59.2]} 17... Nxe5 {[%clk 0:01:12.8]} 18. Bxe5 {[%clk 0:00:58.8]}
18... Nd7 {[%clk 0:01:13]} 19. Bxg7 {[%clk 0:00:58]} 19... Kxg7 {[%clk
0:01:13.9]} 20. f4 {[%clk 0:00:54.1]} 20... Qf6 {[%clk 0:01:09.9]} 21. g3 {[%clk
0:00:53.4]} 21... Qd6 {[%clk 0:00:57.4]} 22. Nf2 {[%clk 0:00:52.2]} 22... f6
{[%clk 0:00:51]} 23. Bb5 {[%clk 0:00:51]} 23... e5 {[%clk 0:00:50.1]} 24. Rad1
{[%clk 0:00:47.6]} 24... c4 {[%clk 0:00:40.5]} 25. Kh2 {[%clk 0:00:32.6]} 25...
e4 {[%clk 0:00:33.4]} 26. Nh3 {[%clk 0:00:31.2]} 26... Bc8 {[%clk 0:00:31.6]}
27. Qd2 {[%clk 0:00:22.5]} 27... Nb6 {[%clk 0:00:30.5]} 28. Nf2 {[%clk
0:00:19.1]} 28... b3 {[%clk 0:00:26.2]} 29. Rg1 {[%clk 0:00:17.8]} 29... Rh8
{[%clk 0:00:25.5]} 30. Rg2 {[%clk 0:00:17]} 30... Bd7 {[%clk 0:00:23.6]} 31.
Bxd7 {[%clk 0:00:16.2]} 31... Qxd7 {[%clk 0:00:24.5]} 32. Ra1 {[%clk 0:00:16]}
32... Nc8 {[%clk 0:00:19.6]} 33. Qe2 {[%clk 0:00:14.2]} 33... Ne7 {[%clk
0:00:19.2]} 34. Qd1 {[%clk 0:00:08.6]} 34... Rh7 {[%clk 0:00:19.4]} 35. Qe2
{[%clk 0:00:08.6]} 35... Rdh8 {[%clk 0:00:19.9]} 36. Qd1 {[%clk 0:00:08.5]}
36... Kf8 {[%clk 0:00:20.5]} 37. Qe2 {[%clk 0:00:06.9]} 37... Ke8 {[%clk
0:00:21.1]} 38. Qd1 {[%clk 0:00:07.1]} 38... Kd8 {[%clk 0:00:21.5]} 39. Qe2
{[%clk 0:00:07.4]} 39... Kc7 {[%clk 0:00:22.1]} 40. Nh3 {[%clk 0:00:07.1]} 40...
Rg7 {[%clk 0:00:21.1]} 41. Qd1 {[%clk 0:00:06.7]} 41... Nf5 {[%clk 0:00:20.4]}
42. Qe2 {[%clk 0:00:05.8]} 42... Nh6 {[%clk 0:00:20.5]} 43. Nf2 {[%clk
0:00:05.5]} 43... Kb6 {[%clk 0:00:21.1]} 44. Nh3 {[%clk 0:00:03.3]} 44... Ng4+
{[%clk 0:00:20]} 45. Kg1 {[%clk 0:00:03.5]} 45... Qe7 {[%clk 0:00:19.7]} 46. Nf2
{[%clk 0:00:02]} 46... Nh6 {[%clk 0:00:17.6]} 47. Nh3 {[%clk 0:00:01.7]} 47...
Qd7 {[%clk 0:00:17.6]} 48. Nf2 {[%clk 0:00:01.9]} 48... Rhg8 {[%clk 0:00:18.2]}
0-1

[Event "*** Titled Tuesday Blitz"]
[Site "Chess.com"]
[Date "2021.04.27"]
[Round "6"]
[White "Region_07"]
[Black "Kildepiotr"]
[Result "1-0"]
[WhiteElo "2385"]
[BlackElo "2614"]
[TimeControl "180+1"]
[EndTime "11:07:08 PDT"]
[Termination "Region_07 won by resignation"]

1. d4 {[%clk 0:03:00.9]} 1... c5 {[%clk 0:02:59.5]} 2. e3 {[%clk 0:02:57.6]}
2... Nf6 {[%clk 0:02:59.1]} 3. Nf3 {[%clk 0:02:55.1]} 3... d5 {[%clk 0:02:58.5]}
4. c3 {[%clk 0:02:54.9]} 4... Bg4 {[%clk 0:02:57.4]} 5. Nbd2 {[%clk 0:02:55]}
5... Nbd7 {[%clk 0:02:56.7]} 6. h3 {[%clk 0:02:52.5]} 6... Bh5 {[%clk
0:02:55.4]} 7. Bd3 {[%clk 0:02:52]} 7... e6 {[%clk 0:02:55.2]} 8. O-O {[%clk
0:02:49.7]} 8... Qb6 {[%clk 0:02:53.4]} 9. e4 {[%clk 0:02:46.6]} 9... cxd4
{[%clk 0:02:52.6]} 10. cxd4 {[%clk 0:02:42.2]} 10... dxe4 {[%clk 0:02:50.8]} 11.
Nxe4 {[%clk 0:02:41.5]} 11... Nxe4 {[%clk 0:02:51]} 12. Bxe4 {[%clk 0:02:41.3]}
12... Bd6 {[%clk 0:02:50.2]} 13. Qa4 {[%clk 0:02:37.7]} 13... Bxf3 {[%clk
0:02:45.2]} 14. Bxf3 {[%clk 0:02:35]} 14... Rd8 {[%clk 0:02:44.2]} 15. Bg5
{[%clk 0:02:28.3]} 15... f6 {[%clk 0:02:42.2]} 16. Bh5+ {[%clk 0:02:20.3]} 16...
g6 {[%clk 0:02:41.5]} 17. Bxf6 {[%clk 0:02:18.8]} 17... gxh5 {[%clk 0:02:25]}
18. Bxh8 {[%clk 0:02:16.7]} 18... Kf7 {[%clk 0:02:21.6]} 19. Rae1 {[%clk
0:02:06.7]} 19... Qc6 {[%clk 0:02:01.7]} 20. Qxc6 {[%clk 0:01:50.3]} 20... bxc6
{[%clk 0:02:02.6]} 21. Be5 {[%clk 0:01:50.1]} 21... Be7 {[%clk 0:02:00.5]} 22.
Rc1 {[%clk 0:01:38.3]} 22... c5 {[%clk 0:01:55.9]} 23. Rfe1 {[%clk 0:01:32.4]}
23... Nxe5 {[%clk 0:01:43.2]} 24. dxe5 {[%clk 0:01:32.1]} 24... Rd2 {[%clk
0:01:43.2]} 25. Rb1 {[%clk 0:01:22.2]} 25... c4 {[%clk 0:01:40.2]} 26. Kf1
{[%clk 0:01:22.5]} 26... Bc5 {[%clk 0:01:34.6]} 27. Re2 {[%clk 0:01:22.6]} 27...
Rd4 {[%clk 0:01:33.6]} 28. Rc1 {[%clk 0:01:20.2]} 28... Kg6 {[%clk 0:01:25.8]}
29. b3 {[%clk 0:01:15]} 29... Bb4 {[%clk 0:01:11.2]} 30. bxc4 {[%clk 0:01:12.3]}
30... Bc5 {[%clk 0:01:09.3]} 31. Re3 {[%clk 0:00:57.4]} 31... Kf5 {[%clk
0:01:05.2]} 32. Ke2 {[%clk 0:00:49.2]} 32... Rd7 {[%clk 0:00:58.4]} 33. Rb3
{[%clk 0:00:40.8]} 33... Kxe5 {[%clk 0:00:56.7]} 34. Rb5 {[%clk 0:00:40.3]}
34... Rc7 {[%clk 0:00:54.9]} 35. a4 {[%clk 0:00:38.6]} 35... h4 {[%clk
0:00:46.3]} 36. a5 {[%clk 0:00:34.4]} 36... Kf4 {[%clk 0:00:46.1]} 37. a6 {[%clk
0:00:33.3]} 37... Bd4 {[%clk 0:00:38.9]} 38. c5 {[%clk 0:00:31]} 38... Rc6
{[%clk 0:00:36.5]} 39. Rb4 {[%clk 0:00:28.3]} 39... e5 {[%clk 0:00:34.5]} 40.
Ra4 {[%clk 0:00:25]} 40... Ke4 {[%clk 0:00:32.7]} 41. f3+ {[%clk 0:00:23]} 41...
Kd5 {[%clk 0:00:33]} 42. Kd3 {[%clk 0:00:23]} 42... Bxc5 {[%clk 0:00:23.2]} 43.
Ra5 {[%clk 0:00:21.5]} 43... Kd6 {[%clk 0:00:20.4]} 44. Ke4 {[%clk 0:00:17.7]}
44... Bd4 {[%clk 0:00:18.4]} 45. Rxc6+ {[%clk 0:00:16.3]} 45... Kxc6 {[%clk
0:00:19.3]} 46. f4 {[%clk 0:00:09.1]} 46... Kb6 {[%clk 0:00:19.3]} 47. Ra2
{[%clk 0:00:07.4]} 47... Bc3 {[%clk 0:00:12.5]} 48. f5 {[%clk 0:00:06.2]} 1-0

[Event "*** Titled Tuesday Blitz"]
[Site "Chess.com"]
[Date "2021.04.27"]
[Round "6"]
[White "ybruned"]
[Black "Grandmaster1369"]
[Result "1-0"]
[WhiteElo "2369"]
[BlackElo "2560"]
[TimeControl "180+1"]
[EndTime "11:07:08 PDT"]
[Termination "ybruned won by checkmate"]

1. b3 {[%clk 0:03:00.9]} 1... e5 {[%clk 0:02:55.2]} 2. Bb2 {[%clk 0:03:00.2]}
2... Nc6 {[%clk 0:02:55.9]} 3. e3 {[%clk 0:03:00.4]} 3... d5 {[%clk 0:02:55.6]}
4. Bb5 {[%clk 0:03:00.5]} 4... Bd6 {[%clk 0:02:54.8]} 5. f4 {[%clk 0:03:01.1]}
5... Qe7 {[%clk 0:02:51.9]} 6. Nf3 {[%clk 0:02:54.5]} 6... Nf6 {[%clk
0:02:46.3]} 7. fxe5 {[%clk 0:02:48.3]} 7... Bxe5 {[%clk 0:02:32.3]} 8. Nxe5
{[%clk 0:02:33.6]} 8... O-O {[%clk 0:02:28.2]} 9. Bxc6 {[%clk 0:02:25]} 9...
bxc6 {[%clk 0:02:29.1]} 10. Nxc6 {[%clk 0:02:15.5]} 10... Qe6 {[%clk 0:02:11.1]}
11. Nd4 {[%clk 0:02:12.2]} 11... Qe4 {[%clk 0:02:10]} 12. O-O {[%clk 0:02:09.4]}
12... Bg4 {[%clk 0:02:10.6]} 13. Qe1 {[%clk 0:02:00.6]} 13... c5 {[%clk
0:02:09.7]} 14. Nc3 {[%clk 0:01:54.2]} 14... Qg6 {[%clk 0:02:04.2]} 15. Nf3
{[%clk 0:01:52.9]} 15... Qxc2 {[%clk 0:02:01.1]} 16. Qb1 {[%clk 0:01:47.1]}
16... Qxb1 {[%clk 0:01:45.9]} 17. Raxb1 {[%clk 0:01:46.5]} 17... Bf5 {[%clk
0:01:42.7]} 18. Rbc1 {[%clk 0:01:43.8]} 18... Bd3 {[%clk 0:01:43.6]} 19. Rfe1
{[%clk 0:01:40.6]} 19... Rfd8 {[%clk 0:01:40.9]} 20. Na4 {[%clk 0:01:37.6]}
20... c4 {[%clk 0:01:35.6]} 21. Bxf6 {[%clk 0:01:32.8]} 21... gxf6 {[%clk
0:01:31]} 22. Nc5 {[%clk 0:01:30.5]} 22... Bg6 {[%clk 0:01:16.8]} 23. bxc4
{[%clk 0:01:29]} 23... Rac8 {[%clk 0:01:17.5]} 24. d4 {[%clk 0:01:27.5]} 24...
dxc4 {[%clk 0:01:17.5]} 25. Rxc4 {[%clk 0:01:27.7]} 25... Bd3 {[%clk 0:01:17.7]}
26. Rc3 {[%clk 0:01:27.4]} 26... Bb5 {[%clk 0:01:17.7]} 27. Rb1 {[%clk
0:01:26.6]} 27... Be2 {[%clk 0:01:16.7]} 28. Rbc1 {[%clk 0:01:26.9]} 28... Rb8
{[%clk 0:01:12.5]} 29. Kf2 {[%clk 0:01:27.4]} 29... Bb5 {[%clk 0:01:10.7]} 30.
Rb3 {[%clk 0:01:27.8]} 30... Bc6 {[%clk 0:01:10.5]} 31. Rcb1 {[%clk 0:01:26.4]}
31... Rbc8 {[%clk 0:01:10.1]} 32. Rc1 {[%clk 0:01:26.8]} 32... Bd5 {[%clk
0:01:09.9]} 33. Rb2 {[%clk 0:01:26.2]} 33... Re8 {[%clk 0:01:06.1]} 34. Rc3
{[%clk 0:01:25.2]} 34... Rc6 {[%clk 0:01:04.9]} 35. g3 {[%clk 0:01:24.3]} 35...
h5 {[%clk 0:00:57.7]} 36. Nh4 {[%clk 0:01:21]} 36... Kg7 {[%clk 0:00:51.4]} 37.
Ra3 {[%clk 0:01:21.6]} 37... Re7 {[%clk 0:00:47.3]} 38. Ng2 {[%clk 0:01:21.5]}
38... h4 {[%clk 0:00:42.4]} 39. Nxh4 {[%clk 0:01:19.1]} 39... Rec7 {[%clk
0:00:39.8]} 40. e4 {[%clk 0:01:17.2]} 40... Bc4 {[%clk 0:00:38.2]} 41. Ke3
{[%clk 0:01:16.8]} 41... a6 {[%clk 0:00:32.9]} 42. Rc3 {[%clk 0:01:16.4]} 42...
Bb5 {[%clk 0:00:32.9]} 43. Rbc2 {[%clk 0:01:12.1]} 43... Kf8 {[%clk 0:00:28.2]}
44. a4 {[%clk 0:01:11.4]} 44... Bf1 {[%clk 0:00:27.9]} 45. Nf5 {[%clk 0:01:05]}
45... Kg8 {[%clk 0:00:24.3]} 46. Nh6+ {[%clk 0:01:03.9]} 46... Kg7 {[%clk
0:00:23.4]} 47. Nf5+ {[%clk 0:01:04.1]} 47... Kg6 {[%clk 0:00:24]} 48. Kd2
{[%clk 0:01:03.6]} 48... Bg2 {[%clk 0:00:22.8]} 49. Ke3 {[%clk 0:01:01.4]} 49...
Bf1 {[%clk 0:00:19.6]} 50. Rc1 {[%clk 0:01:01.8]} 50... Bh3 {[%clk 0:00:18.8]}
51. Nh4+ {[%clk 0:00:58.3]} 51... Kh5 {[%clk 0:00:17.9]} 52. a5 {[%clk
0:00:55.5]} 52... Re7 {[%clk 0:00:16.8]} 53. Kf4 {[%clk 0:00:52]} 53... f5
{[%clk 0:00:15.6]} 54. Nxf5 {[%clk 0:00:51.4]} 54... Bxf5 {[%clk 0:00:15.1]} 55.
exf5 {[%clk 0:00:51.5]} 55... Re2 {[%clk 0:00:15]} 56. R1c2 {[%clk 0:00:51.8]}
56... Re1 {[%clk 0:00:14]} 57. Re3 {[%clk 0:00:50.8]} 57... Rf1+ {[%clk
0:00:13.4]} 58. Rf3 {[%clk 0:00:51.2]} 58... Re1 {[%clk 0:00:13.3]} 59. g4+
{[%clk 0:00:51.4]} 59... Kh4 {[%clk 0:00:12.2]} 60. Rcc3 {[%clk 0:00:50.5]}
60... Re3 {[%clk 0:00:03.5]} 61. Rcxe3 {[%clk 0:00:48.9]} 61... Rxc5 {[%clk
0:00:04.1]} 62. Rh3# {[%clk 0:00:49]} 1-0

[Event "*** Titled Tuesday Blitz"]
[Site "Chess.com"]
[Date "2021.04.27"]
[Round "6"]
[White "VladDobrov"]
[Black "Natalya_Buksa"]
[Result "1-0"]
[WhiteElo "2721"]
[BlackElo "2516"]
[TimeControl "180+1"]
[EndTime "11:07:09 PDT"]
[Termination "VladDobrov won by resignation"]

1. b3 {[%clk 0:03:00.9]} 1... Nf6 {[%clk 0:02:55.3]} 2. Bb2 {[%clk 0:03:00.1]}
2... g6 {[%clk 0:02:55.9]} 3. g4 {[%clk 0:02:56.2]} 3... h6 {[%clk 0:02:53.4]}
4. h4 {[%clk 0:02:52.9]} 4... Bg7 {[%clk 0:02:52.1]} 5. Bg2 {[%clk 0:02:50.6]}
5... d6 {[%clk 0:02:26.3]} 6. c4 {[%clk 0:02:35.7]} 6... e5 {[%clk 0:02:20.9]}
7. f3 {[%clk 0:02:25.7]} 7... Nc6 {[%clk 0:02:15.9]} 8. Nc3 {[%clk 0:02:25.6]}
8... Be6 {[%clk 0:02:15.7]} 9. e4 {[%clk 0:02:20.4]} 9... Nb4 {[%clk 0:02:14.2]}
10. d3 {[%clk 0:02:18.2]} 10... a5 {[%clk 0:01:58.5]} 11. Nge2 {[%clk 0:02:17]}
11... Nc6 {[%clk 0:01:51]} 12. Qd2 {[%clk 0:02:14.1]} 12... Qd7 {[%clk
0:01:47.6]} 13. O-O-O {[%clk 0:02:11.3]} 13... O-O-O {[%clk 0:01:16.3]} 14. Kb1
{[%clk 0:02:06.2]} 14... Kb8 {[%clk 0:01:16.1]} 15. Nd5 {[%clk 0:02:04.6]} 15...
b6 {[%clk 0:01:12]} 16. Rc1 {[%clk 0:01:56.5]} 16... Qc8 {[%clk 0:00:42.7]} 17.
Rc2 {[%clk 0:01:37.8]} 17... Nd7 {[%clk 0:00:42.9]} 18. d4 {[%clk 0:01:26.8]}
18... Qb7 {[%clk 0:00:18.1]} 19. Rd1 {[%clk 0:01:20.9]} 19... Rhe8 {[%clk
0:00:16.1]} 20. Rcc1 {[%clk 0:01:18.7]} 20... exd4 {[%clk 0:00:14.2]} 21. Nxd4
{[%clk 0:01:18.8]} 21... Nxd4 {[%clk 0:00:13.2]} 22. Bxd4 {[%clk 0:01:18.9]}
22... Bxd4 {[%clk 0:00:13.6]} 23. Qxd4 {[%clk 0:01:19.8]} 23... Ne5 {[%clk
0:00:14.1]} 24. Rh1 {[%clk 0:01:11.5]} 24... Qc6 {[%clk 0:00:14.1]} 25. g5
{[%clk 0:01:11.6]} 25... hxg5 {[%clk 0:00:13.6]} 26. hxg5 {[%clk 0:01:12.5]}
26... Qc5 {[%clk 0:00:14.2]} 27. Qd2 {[%clk 0:01:03.6]} 27... Rh8 {[%clk
0:00:13.7]} 28. Nf6 {[%clk 0:00:54.1]} 28... Nc6 {[%clk 0:00:12.4]} 29. f4
{[%clk 0:00:51.1]} 29... Qd4 {[%clk 0:00:12]} 30. Qe2 {[%clk 0:00:44.4]} 30...
Rxh1 {[%clk 0:00:10.4]} 31. Rxh1 {[%clk 0:00:43.7]} 31... Nb4 {[%clk 0:00:10.2]}
32. Rd1 {[%clk 0:00:42.2]} 32... Qc3 {[%clk 0:00:10.5]} 33. Qb2 {[%clk
0:00:30.5]} 33... Qxb2+ {[%clk 0:00:09.9]} 34. Kxb2 {[%clk 0:00:31.4]} 34... Rh8
{[%clk 0:00:10.2]} 35. Rd2 {[%clk 0:00:24.4]} 35... Rh2 {[%clk 0:00:10.1]} 36.
Kc1 {[%clk 0:00:24.8]} 36... Nd3+ {[%clk 0:00:09.1]} 37. Rxd3 {[%clk 0:00:20.1]}
37... Rxg2 {[%clk 0:00:09.6]} 38. Rf3 {[%clk 0:00:18]} 38... Rxa2 {[%clk
0:00:09.1]} 39. f5 {[%clk 0:00:18.6]} 39... gxf5 {[%clk 0:00:09]} 40. exf5
{[%clk 0:00:19.5]} 40... Bc8 {[%clk 0:00:09.1]} 41. Nd5 {[%clk 0:00:12.2]} 41...
Rg2 {[%clk 0:00:08.3]} 42. g6 {[%clk 0:00:12.8]} 42... fxg6 {[%clk 0:00:04.4]}
43. f6 {[%clk 0:00:13.2]} 43... Be6 {[%clk 0:00:04.4]} 44. f7 {[%clk 0:00:13.8]}
44... Bxf7 {[%clk 0:00:04]} 45. Rxf7 {[%clk 0:00:14.7]} 45... a4 {[%clk
0:00:02.8]} 46. bxa4 {[%clk 0:00:13.5]} 46... Ra2 {[%clk 0:00:03.2]} 47. Nc3
{[%clk 0:00:12.1]} 47... Ra3 {[%clk 0:00:01.9]} 48. Kb2 {[%clk 0:00:12.5]} 48...
Rxc3 {[%clk 0:00:02]} 49. Kxc3 {[%clk 0:00:12.8]} 1-0